[Event "Late-Titled-Tuesday-Blitz-February-27-2024"]
[Site "Chess.com"]
[Date "2024.02.27"]
[Round "1"]
[White "Goryachkina"]
[Black "jamengrand"]
[Result "1-0"]
[WhiteElo "2696"]
[BlackElo "2397"]
[TimeControl "180+1"]
[EndTime "14:07:39 PST"]
[Termination "Goryachkina won by resignation"]

1. e4 {[%clk 0:02:59.7]} 1... e5 {[%clk 0:02:59.5]} 2. Nf3 {[%clk 0:02:59.7]}
2... Nc6 {[%clk 0:02:59.2]} 3. Nc3 {[%clk 0:02:59.8]} 3... Nf6 {[%clk
0:02:58.9]} 4. Bb5 {[%clk 0:03:00]} 4... Nd4 {[%clk 0:02:57.9]} 5. Bc4 {[%clk
0:02:59.4]} 5... Bc5 {[%clk 0:02:54.1]} 6. d3 {[%clk 0:02:40.4]} 6... Nxf3+
{[%clk 0:02:45.6]} 7. Qxf3 {[%clk 0:02:39.7]} 7... h6 {[%clk 0:02:45.4]} 8. O-O
{[%clk 0:02:36.6]} 8... c6 {[%clk 0:02:44.9]} 9. Qg3 {[%clk 0:02:29.8]} 9... Qe7
{[%clk 0:02:38]} 10. Qxg7 {[%clk 0:02:14.9]} 10... Rg8 {[%clk 0:02:37]} 11. Qxh6
{[%clk 0:02:14.5]} 11... d5 {[%clk 0:01:53.6]} 12. exd5 {[%clk 0:02:09.4]} 12...
Ng4 {[%clk 0:01:53.1]} 13. Qh7 {[%clk 0:01:59.7]} 13... Nf6 {[%clk 0:01:51.5]}
14. Qh6 {[%clk 0:01:29.8]} 14... Rg6 {[%clk 0:01:49.6]} 15. Qh4 {[%clk 0:01:24]}
15... cxd5 {[%clk 0:01:41.9]} 16. Nxd5 {[%clk 0:01:15.2]} 16... Nxd5 {[%clk
0:01:38.7]} 17. Qh8+ {[%clk 0:01:15.1]} 17... Kd7 {[%clk 0:01:31.4]} 18. Bxd5
{[%clk 0:01:15.1]} 18... Kd6 {[%clk 0:01:29.9]} 19. c4 {[%clk 0:00:58.6]} 19...
Rb8 {[%clk 0:00:32.1]} 20. Be3 {[%clk 0:00:51.8]} 20... Bxe3 {[%clk 0:00:14.6]}
21. fxe3 {[%clk 0:00:52.7]} 21... Qg5 {[%clk 0:00:15]} 22. Qf8+ {[%clk
0:00:50.8]} 22... Kc7 {[%clk 0:00:14.4]} 23. Rxf7+ {[%clk 0:00:47]} 23... Bd7
{[%clk 0:00:14.1]} 24. Rxd7+ {[%clk 0:00:36.4]} 24... Kxd7 {[%clk 0:00:14]} 25.
Qxb8 {[%clk 0:00:36.6]} 25... Qxe3+ {[%clk 0:00:12]} 26. Kh1 {[%clk 0:00:36.9]}
26... Rh6 {[%clk 0:00:05.6]} 27. Qxb7+ {[%clk 0:00:35.8]} 27... Kd8 {[%clk
0:00:05.9]} 28. Qb8+ {[%clk 0:00:35.2]} 28... Kd7 {[%clk 0:00:06]} 29. Rf1
{[%clk 0:00:16.3]} 29... Rxh2+ {[%clk 0:00:02.9]} 30. Kxh2 {[%clk 0:00:16]}
30... Qh6+ {[%clk 0:00:03.5]} 31. Kg1 {[%clk 0:00:12.1]} 31... Qe3+ {[%clk
0:00:03.4]} 32. Rf2 {[%clk 0:00:11.9]} 32... Qc1+ {[%clk 0:00:03.4]} 33. Kh2
{[%clk 0:00:10.4]} 33... Qh6+ {[%clk 0:00:04]} 34. Kg3 {[%clk 0:00:10.8]} 34...
Qg5+ {[%clk 0:00:04.2]} 35. Kf3 {[%clk 0:00:10.8]} 35... Qh5+ {[%clk 0:00:03.8]}
36. Ke3 {[%clk 0:00:09.7]} 36... Qg5+ {[%clk 0:00:03.9]} 37. Ke2 {[%clk
0:00:10.2]} 37... Qg4+ {[%clk 0:00:04]} 38. Bf3 {[%clk 0:00:10.6]} 38... Qd4
{[%clk 0:00:03.4]} 39. Qb7+ {[%clk 0:00:10.8]} 1-0

[Event "Late-Titled-Tuesday-Blitz-February-27-2024"]
[Site "Chess.com"]
[Date "2024.02.27"]
[Round "1"]
[White "giomar27"]
[Black "lamomiajunior"]
[Result "0-1"]
[WhiteElo "2413"]
[BlackElo "2723"]
[TimeControl "180+1"]
[EndTime "14:07:40 PST"]
[Termination "lamomiajunior won on time"]

1. Nc3 {[%clk 0:03:00.9]} 1... c5 {[%clk 0:02:56.4]} 2. e4 {[%clk 0:02:50.9]}
2... d6 {[%clk 0:02:55.8]} 3. d4 {[%clk 0:02:50.5]} 3... cxd4 {[%clk 0:02:56.7]}
4. Qxd4 {[%clk 0:02:50.9]} 4... Nc6 {[%clk 0:02:57.1]} 5. Qd2 {[%clk 0:02:49.1]}
5... g6 {[%clk 0:02:56.7]} 6. b3 {[%clk 0:02:49.7]} 6... Bh6 {[%clk 0:02:56.6]}
7. f4 {[%clk 0:02:49.7]} 7... f5 {[%clk 0:02:54.3]} 8. Bb2 {[%clk 0:02:48.5]}
8... Nf6 {[%clk 0:02:54.5]} 9. exf5 {[%clk 0:02:43.5]} 9... Bxf5 {[%clk
0:02:53.7]} 10. O-O-O {[%clk 0:02:40.2]} 10... O-O {[%clk 0:02:53.5]} 11. Nf3
{[%clk 0:02:31.5]} 11... e6 {[%clk 0:02:44]} 12. h3 {[%clk 0:02:27.7]} 12... Ne4
{[%clk 0:02:42.7]} 13. Nxe4 {[%clk 0:02:26.1]} 13... Bxe4 {[%clk 0:02:43.6]} 14.
Ng5 {[%clk 0:02:11.3]} 14... Bxg5 {[%clk 0:02:06.4]} 15. fxg5 {[%clk 0:02:08.8]}
15... d5 {[%clk 0:02:06]} 16. Kb1 {[%clk 0:02:04.2]} 16... Rc8 {[%clk
0:02:05.1]} 17. Bb5 {[%clk 0:01:59.9]} 17... Qb6 {[%clk 0:01:45.5]} 18. Qc3
{[%clk 0:01:28.2]} 18... d4 {[%clk 0:01:40.4]} 19. Qc4 {[%clk 0:01:26.5]} 19...
Ne5 {[%clk 0:01:33.4]} 20. Qxd4 {[%clk 0:01:06.3]} 20... Bxc2+ {[%clk
0:01:30.5]} 21. Ka1 {[%clk 0:01:06.1]} 21... Qxb5 {[%clk 0:01:30.3]} 22. Rde1
{[%clk 0:01:03.5]} 22... Rc5 {[%clk 0:00:54.2]} 23. b4 {[%clk 0:00:43.5]} 23...
Rd5 {[%clk 0:00:53.1]} 24. Qc3 {[%clk 0:00:40]} 24... Bf5 {[%clk 0:00:22.3]} 25.
g4 {[%clk 0:00:35]} 25... Bd3 {[%clk 0:00:15.9]} 26. Re3 {[%clk 0:00:24.6]}
26... Qc4 {[%clk 0:00:12.3]} 27. Rxe5 {[%clk 0:00:17.4]} 27... Qxc3 {[%clk
0:00:12.7]} 28. Bxc3 {[%clk 0:00:17.5]} 28... Rc8 {[%clk 0:00:11.2]} 29. Rxd5
{[%clk 0:00:14.9]} 29... exd5 {[%clk 0:00:12.1]} 30. Kb2 {[%clk 0:00:14.7]}
30... Be4 {[%clk 0:00:12.9]} 31. Rf1 {[%clk 0:00:13]} 31... Rd8 {[%clk
0:00:12.9]} 32. Bd4 {[%clk 0:00:12.5]} 32... b6 {[%clk 0:00:13.4]} 33. Rf6
{[%clk 0:00:11.3]} 33... Rc8 {[%clk 0:00:13.5]} 34. Rd6 {[%clk 0:00:07.7]} 34...
Rc2+ {[%clk 0:00:12.4]} 35. Kb3 {[%clk 0:00:06.8]} 35... Rd2 {[%clk 0:00:12.2]}
36. Bf6 {[%clk 0:00:06.4]} 36... Rd3+ {[%clk 0:00:10.3]} 37. Ka4 {[%clk
0:00:04.9]} 37... Kf7 {[%clk 0:00:10.4]} 38. Rd7+ {[%clk 0:00:04.7]} 38... Ke6
{[%clk 0:00:10.8]} 39. Re7+ {[%clk 0:00:04.4]} 39... Kd6 {[%clk 0:00:11.1]} 40.
Rxh7 {[%clk 0:00:02.2]} 40... Rd2 {[%clk 0:00:10.8]} 41. Kb5 {[%clk 0:00:02.5]}
41... Bd3+ {[%clk 0:00:10.4]} 42. Ka4 {[%clk 0:00:01.5]} 42... Rxa2+ {[%clk
0:00:08]} 43. Kb3 {[%clk 0:00:01.7]} 43... Rg2 {[%clk 0:00:07.8]} 44. Kc3 {[%clk
0:00:01.7]} 44... Be4 {[%clk 0:00:07.3]} 0-1

[Event "Late-Titled-Tuesday-Blitz-February-27-2024"]
[Site "Chess.com"]
[Date "2024.02.27"]
[Round "1"]
[White "FredddieCroderg"]
[Black "lucasran"]
[Result "0-1"]
[WhiteElo "2270"]
[BlackElo "2608"]
[TimeControl "180+1"]
[EndTime "14:07:42 PST"]
[Termination "lucasran won on time"]

1. e4 {[%clk 0:02:52.7]} 1... c6 {[%clk 0:02:59.9]} 2. d4 {[%clk 0:02:51.7]}
2... d5 {[%clk 0:03:00.8]} 3. exd5 {[%clk 0:02:50.9]} 3... cxd5 {[%clk
0:03:01.7]} 4. Nf3 {[%clk 0:02:41.2]} 4... Nc6 {[%clk 0:03:02.1]} 5. Bb5 {[%clk
0:02:40.1]} 5... Bg4 {[%clk 0:03:01.9]} 6. O-O {[%clk 0:02:36.5]} 6... Nf6
{[%clk 0:03:01.8]} 7. c3 {[%clk 0:02:32.1]} 7... Rc8 {[%clk 0:03:01.9]} 8. Nbd2
{[%clk 0:02:31.7]} 8... e6 {[%clk 0:03:01.8]} 9. Qa4 {[%clk 0:02:31.1]} 9...
Bxf3 {[%clk 0:02:41]} 10. Nxf3 {[%clk 0:02:29.7]} 10... Qb6 {[%clk 0:02:41.1]}
11. Bd3 {[%clk 0:02:14.9]} 11... Bd6 {[%clk 0:02:39.8]} 12. Re1 {[%clk
0:02:13.4]} 12... O-O {[%clk 0:02:39.5]} 13. Ne5 {[%clk 0:02:07.1]} 13... Qc7
{[%clk 0:02:35.4]} 14. Nxc6 {[%clk 0:02:04.9]} 14... bxc6 {[%clk 0:02:07.2]} 15.
h3 {[%clk 0:02:03.6]} 15... h6 {[%clk 0:02:07.3]} 16. Be3 {[%clk 0:01:56.8]}
16... c5 {[%clk 0:02:06.4]} 17. dxc5 {[%clk 0:01:54.4]} 17... Bxc5 {[%clk
0:02:07.3]} 18. Bxc5 {[%clk 0:01:53.5]} 18... Qxc5 {[%clk 0:02:08.2]} 19. Rac1
{[%clk 0:01:39.9]} 19... Rb8 {[%clk 0:02:08.4]} 20. Qc2 {[%clk 0:01:30.8]} 20...
Rfc8 {[%clk 0:02:08.1]} 21. Qe2 {[%clk 0:01:27.3]} 21... Qb6 {[%clk 0:02:06]}
22. b3 {[%clk 0:01:25.1]} 22... Rc7 {[%clk 0:02:05.5]} 23. c4 {[%clk 0:01:24.8]}
23... Rbc8 {[%clk 0:02:05.3]} 24. Rcd1 {[%clk 0:01:19.9]} 24... d4 {[%clk
0:01:56.7]} 25. Qf3 {[%clk 0:01:14.9]} 25... Qc5 {[%clk 0:01:53.1]} 26. Qg3
{[%clk 0:01:11.5]} 26... Rd7 {[%clk 0:01:41.5]} 27. Re5 {[%clk 0:01:09.7]} 27...
Qd6 {[%clk 0:01:41.9]} 28. Rde1 {[%clk 0:01:04.7]} 28... Qa3 {[%clk 0:01:04.6]}
29. R1e2 {[%clk 0:00:57.4]} 29... Qc1+ {[%clk 0:01:04.8]} 30. Kh2 {[%clk
0:00:55.8]} 30... Rcd8 {[%clk 0:01:01.2]} 31. Rc2 {[%clk 0:00:41.2]} 31... Qa3
{[%clk 0:00:59.6]} 32. c5 {[%clk 0:00:38.6]} 32... Rc8 {[%clk 0:00:56.8]} 33. c6
{[%clk 0:00:18.6]} 33... Rdc7 {[%clk 0:00:57.1]} 34. Rec5 {[%clk 0:00:16.2]}
34... Nd5 {[%clk 0:00:51.9]} 35. Qf3 {[%clk 0:00:14]} 35... Nb4 {[%clk
0:00:51.8]} 36. R2c4 {[%clk 0:00:13.5]} 36... Nxa2 {[%clk 0:00:28.7]} 37. Qe4
{[%clk 0:00:12.4]} 37... g6 {[%clk 0:00:29.2]} 38. h4 {[%clk 0:00:09.1]} 38...
Nb4 {[%clk 0:00:28.2]} 39. h5 {[%clk 0:00:08.2]} 39... Nxd3 {[%clk 0:00:28]} 40.
hxg6 {[%clk 0:00:07.5]} 40... Nxc5 {[%clk 0:00:26.5]} 41. gxf7+ {[%clk
0:00:07.2]} 41... Rxf7 {[%clk 0:00:27.4]} 42. Qg6+ {[%clk 0:00:06.3]} 42... Rg7
{[%clk 0:00:27.9]} 43. Qh5 {[%clk 0:00:05.1]} 43... Ne4 {[%clk 0:00:22.8]} 44.
Qh3 {[%clk 0:00:03.3]} 44... Qd6+ {[%clk 0:00:22.8]} 45. g3 {[%clk 0:00:02.5]}
45... Ng5 {[%clk 0:00:22.9]} 46. Qh5 {[%clk 0:00:01.7]} 46... Qd5 {[%clk
0:00:20.7]} 0-1

[Event "Late-Titled-Tuesday-Blitz-February-27-2024"]
[Site "Chess.com"]
[Date "2024.02.27"]
[Round "1"]
[White "bilelou"]
[Black "WPWPWP-2015"]
[Result "0-1"]
[WhiteElo "2709"]
[BlackElo "2434"]
[TimeControl "180+1"]
[EndTime "14:07:43 PST"]
[Termination "WPWPWP-2015 won by resignation"]

1. e4 {[%clk 0:02:48.2]} 1... e5 {[%clk 0:02:59.2]} 2. Nf3 {[%clk 0:02:47.2]}
2... Nc6 {[%clk 0:02:59.3]} 3. Bc4 {[%clk 0:02:46.7]} 3... Nf6 {[%clk 0:02:59]}
4. d3 {[%clk 0:02:46.5]} 4... Be7 {[%clk 0:02:58.6]} 5. Nc3 {[%clk 0:02:47]}
5... O-O {[%clk 0:02:58.4]} 6. a3 {[%clk 0:02:47.5]} 6... d6 {[%clk 0:02:58.1]}
7. Nd5 {[%clk 0:02:48]} 7... h6 {[%clk 0:02:57]} 8. h3 {[%clk 0:02:47.3]} 8...
Be6 {[%clk 0:02:55]} 9. Be3 {[%clk 0:02:43.9]} 9... a5 {[%clk 0:02:50.5]} 10.
Nxf6+ {[%clk 0:02:44]} 10... Bxf6 {[%clk 0:02:49.7]} 11. Bxe6 {[%clk 0:02:44.9]}
11... fxe6 {[%clk 0:02:49.9]} 12. a4 {[%clk 0:02:40.4]} 12... d5 {[%clk
0:02:45.9]} 13. c3 {[%clk 0:02:41.3]} 13... Qd7 {[%clk 0:02:42.5]} 14. O-O
{[%clk 0:02:39.6]} 14... Kh7 {[%clk 0:02:39.1]} 15. Qc2 {[%clk 0:02:37.8]} 15...
Kh8 {[%clk 0:02:32.5]} 16. Rad1 {[%clk 0:02:29.4]} 16... Qf7 {[%clk 0:02:31.4]}
17. Rfe1 {[%clk 0:02:25.7]} 17... Rfe8 {[%clk 0:02:28.8]} 18. Bc1 {[%clk
0:02:18.6]} 18... Rad8 {[%clk 0:02:26.9]} 19. Re2 {[%clk 0:02:16.8]} 19... d4
{[%clk 0:02:15.1]} 20. Bd2 {[%clk 0:02:14.9]} 20... b6 {[%clk 0:02:13]} 21. Qb3
{[%clk 0:02:13.9]} 21... Rd6 {[%clk 0:02:04.7]} 22. c4 {[%clk 0:02:07.6]} 22...
Rdd8 {[%clk 0:01:49.8]} 23. Rc1 {[%clk 0:02:03.8]} 23... Qd7 {[%clk 0:01:31.9]}
24. c5 {[%clk 0:02:00.1]} 24... Rb8 {[%clk 0:01:30.7]} 25. Qc4 {[%clk
0:01:51.2]} 25... Rec8 {[%clk 0:01:24.2]} 26. Be1 {[%clk 0:01:49.5]} 26... Ne7
{[%clk 0:01:14.8]} 27. c6 {[%clk 0:01:36.9]} 27... Qd6 {[%clk 0:00:57.1]} 28. b4
{[%clk 0:01:35.1]} 28... Ng6 {[%clk 0:00:55.3]} 29. g3 {[%clk 0:01:32.7]} 29...
Ra8 {[%clk 0:00:48.6]} 30. b5 {[%clk 0:01:31.8]} 30... Qe7 {[%clk 0:00:45]} 31.
Kg2 {[%clk 0:01:27.7]} 31... Qf7 {[%clk 0:00:44]} 32. Bd2 {[%clk 0:01:22.3]}
32... Rf8 {[%clk 0:00:42.9]} 33. Ng1 {[%clk 0:01:20.8]} 33... Rae8 {[%clk
0:00:41.7]} 34. Rf1 {[%clk 0:01:18.8]} 34... Bg5 {[%clk 0:00:40]} 35. Be1 {[%clk
0:01:17.7]} 35... Be7 {[%clk 0:00:37.1]} 36. f3 {[%clk 0:01:17.4]} 36... Bd6
{[%clk 0:00:37.1]} 37. h4 {[%clk 0:01:17.7]} 37... Ne7 {[%clk 0:00:34.7]} 38.
Nh3 {[%clk 0:01:17.5]} 38... Ng8 {[%clk 0:00:34.4]} 39. Ref2 {[%clk 0:01:17.6]}
39... Qg6 {[%clk 0:00:34]} 40. f4 {[%clk 0:01:10.5]} 40... Nf6 {[%clk 0:00:31]}
41. f5 {[%clk 0:01:10.8]} 41... exf5 {[%clk 0:00:29.6]} 42. Rxf5 {[%clk
0:01:08.6]} 42... Ng4 {[%clk 0:00:26.4]} 43. Bd2 {[%clk 0:01:09.1]} 43... Rxf5
{[%clk 0:00:20.9]} 44. Rxf5 {[%clk 0:01:07.6]} 44... Rf8 {[%clk 0:00:20.5]} 45.
Rxf8+ {[%clk 0:01:07.7]} 45... Bxf8 {[%clk 0:00:20.1]} 46. Qd5 {[%clk
0:01:02.8]} 46... Bd6 {[%clk 0:00:19.6]} 47. Qa2 {[%clk 0:01:00.4]} 47... Qf6
{[%clk 0:00:16.6]} 48. Bc1 {[%clk 0:00:59.9]} 48... Kh7 {[%clk 0:00:14.1]} 49.
Qe2 {[%clk 0:01:00.3]} 49... h5 {[%clk 0:00:12.9]} 50. Bg5 {[%clk 0:00:58.5]}
50... Qf7 {[%clk 0:00:12]} 51. Qf3 {[%clk 0:00:54.7]} 51... Qa2+ {[%clk
0:00:09.8]} 52. Nf2 {[%clk 0:00:50]} 52... Kg8 {[%clk 0:00:09.8]} 53. Qf5 {[%clk
0:00:47.2]} 53... Ne3+ {[%clk 0:00:09.4]} 54. Kf3 {[%clk 0:00:46.6]} 54... Nxf5
{[%clk 0:00:09.1]} 55. exf5 {[%clk 0:00:47.1]} 55... Qd5+ {[%clk 0:00:08.8]} 56.
Ne4 {[%clk 0:00:45.1]} 56... Qb3 {[%clk 0:00:09.2]} 57. Ke2 {[%clk 0:00:44.7]}
57... Qc2+ {[%clk 0:00:09.2]} 58. Bd2 {[%clk 0:00:44.3]} 58... Bb4 {[%clk
0:00:09.1]} 59. f6 {[%clk 0:00:39.9]} 59... Bxd2 {[%clk 0:00:09]} 60. Nxd2
{[%clk 0:00:39.9]} 60... gxf6 {[%clk 0:00:08.9]} 61. Ke1 {[%clk 0:00:40.4]}
61... Kf7 {[%clk 0:00:09.1]} 62. Ke2 {[%clk 0:00:39.5]} 62... Qxa4 {[%clk
0:00:09.3]} 63. Ne4 {[%clk 0:00:39.3]} 63... Qxb5 {[%clk 0:00:09.5]} 0-1

[Event "Late-Titled-Tuesday-Blitz-February-27-2024"]
[Site "Chess.com"]
[Date "2024.02.27"]
[Round "1"]
[White "almaguerjm"]
[Black "ElHelvetico"]
[Result "1-0"]
[WhiteElo "2451"]
[BlackElo "2747"]
[TimeControl "180+1"]
[EndTime "14:07:45 PST"]
[Termination "almaguerjm won by resignation"]

1. e4 {[%clk 0:02:54.6]} 1... g6 {[%clk 0:02:58.3]} 2. Nf3 {[%clk 0:02:52.1]}
2... Bg7 {[%clk 0:02:58.7]} 3. d4 {[%clk 0:02:40.2]} 3... d6 {[%clk 0:02:58.7]}
4. h3 {[%clk 0:02:40.2]} 4... Nf6 {[%clk 0:02:57.8]} 5. Bd3 {[%clk 0:02:40.6]}
5... O-O {[%clk 0:02:57.2]} 6. Nc3 {[%clk 0:02:40]} 6... Nc6 {[%clk 0:02:57.6]}
7. Bg5 {[%clk 0:02:38.6]} 7... h6 {[%clk 0:02:56]} 8. Bh4 {[%clk 0:02:38.4]}
8... e5 {[%clk 0:02:49.5]} 9. d5 {[%clk 0:02:27.1]} 9... Ne7 {[%clk 0:02:43.1]}
10. Qd2 {[%clk 0:02:27.5]} 10... g5 {[%clk 0:02:42.5]} 11. Bg3 {[%clk
0:02:20.2]} 11... Nh5 {[%clk 0:02:37.9]} 12. O-O-O {[%clk 0:02:15.7]} 12... Ng6
{[%clk 0:02:32.1]} 13. h4 {[%clk 0:02:00.1]} 13... g4 {[%clk 0:02:24.4]} 14. Nh2
{[%clk 0:01:58.8]} 14... Kh7 {[%clk 0:02:06.7]} 15. Kb1 {[%clk 0:01:36.3]} 15...
a6 {[%clk 0:02:05.9]} 16. Be2 {[%clk 0:01:32.4]} 16... Nxg3 {[%clk 0:02:05.5]}
17. fxg3 {[%clk 0:01:31.6]} 17... h5 {[%clk 0:02:06.2]} 18. Rdf1 {[%clk
0:01:10.5]} 18... Bh6 {[%clk 0:02:04.4]} 19. Qd1 {[%clk 0:01:09.4]} 19... b5
{[%clk 0:01:56.5]} 20. Bxg4 {[%clk 0:00:43.8]} 20... hxg4 {[%clk 0:01:57.4]} 21.
h5 {[%clk 0:00:43.5]} 21... Ne7 {[%clk 0:01:50.2]} 22. Nxg4 {[%clk 0:00:43.8]}
22... Ng8 {[%clk 0:01:48.4]} 23. Qf3 {[%clk 0:00:35]} 23... Qg5 {[%clk
0:01:41.5]} 24. Nxh6 {[%clk 0:00:30.9]} 24... Nxh6 {[%clk 0:01:42.4]} 25. Nd1
{[%clk 0:00:27.5]} 25... Bg4 {[%clk 0:01:40.2]} 26. Qc3 {[%clk 0:00:27.7]} 26...
Bxd1 {[%clk 0:01:35.4]} 27. Rxd1 {[%clk 0:00:26]} 27... Qe7 {[%clk 0:01:28.8]}
28. Rdf1 {[%clk 0:00:26]} 28... Rg8 {[%clk 0:01:28.8]} 29. Rf3 {[%clk
0:00:25.8]} 29... Rg5 {[%clk 0:01:23.8]} 30. Rhf1 {[%clk 0:00:25.2]} 30... Rag8
{[%clk 0:01:24.4]} 31. Qc6 {[%clk 0:00:23.6]} 31... Rxg3 {[%clk 0:01:18.4]} 32.
Rxg3 {[%clk 0:00:24.1]} 32... Rxg3 {[%clk 0:01:18.8]} 33. Qxa6 {[%clk
0:00:24.9]} 33... Rxg2 {[%clk 0:01:08.3]} 34. Qxb5 {[%clk 0:00:24.8]} 34... Qg5
{[%clk 0:01:03]} 35. a4 {[%clk 0:00:23.5]} 35... Rg1 {[%clk 0:00:55.2]} 36. a5
{[%clk 0:00:23.5]} 36... Rxf1+ {[%clk 0:00:48.5]} 37. Qxf1 {[%clk 0:00:24.4]}
37... Qd2 {[%clk 0:00:43.1]} 38. a6 {[%clk 0:00:24.4]} 38... Qa5 {[%clk
0:00:43.2]} 39. c3 {[%clk 0:00:20.3]} 39... f5 {[%clk 0:00:41.9]} 40. exf5
{[%clk 0:00:20.2]} 40... Kg7 {[%clk 0:00:35.7]} 41. f6+ {[%clk 0:00:20.3]} 41...
Kf8 {[%clk 0:00:25]} 42. Qd3 {[%clk 0:00:18.2]} 42... Nf7 {[%clk 0:00:20.7]} 43.
b4 {[%clk 0:00:15]} 43... Qb6 {[%clk 0:00:20.1]} 44. Kc2 {[%clk 0:00:14.6]}
44... Qf2+ {[%clk 0:00:19.9]} 45. Kb3 {[%clk 0:00:15]} 45... Qb6 {[%clk
0:00:16.5]} 46. Qg6 {[%clk 0:00:13.2]} 46... Qxa6 {[%clk 0:00:12.5]} 47. Qg7+
{[%clk 0:00:13.7]} 47... Ke8 {[%clk 0:00:13.4]} 48. Qg8+ {[%clk 0:00:14.3]}
48... Kd7 {[%clk 0:00:14.2]} 49. Qxf7+ {[%clk 0:00:15]} 49... Kd8 {[%clk
0:00:14.9]} 50. Qf8+ {[%clk 0:00:15.1]} 50... Kd7 {[%clk 0:00:14.2]} 51. f7
{[%clk 0:00:15.7]} 51... c5 {[%clk 0:00:07.4]} 52. Qe8+ {[%clk 0:00:15.2]} 52...
Kc7 {[%clk 0:00:08]} 53. Qe7+ {[%clk 0:00:15.5]} 53... Kb6 {[%clk 0:00:07.2]}
54. Qxd6+ {[%clk 0:00:16]} 1-0

[Event "Late-Titled-Tuesday-Blitz-February-27-2024"]
[Site "Chess.com"]
[Date "2024.02.27"]
[Round "1"]
[White "hansen"]
[Black "DeArron_Fox"]
[Result "1-0"]
[WhiteElo "2910"]
[BlackElo "2489"]
[TimeControl "180+1"]
[EndTime "14:07:47 PST"]
[Termination "hansen won by resignation"]

1. e4 {[%clk 0:02:28]} 1... c5 {[%clk 0:02:52.7]} 2. Nf3 {[%clk 0:02:25.2]} 2...
e6 {[%clk 0:02:51.5]} 3. c3 {[%clk 0:02:21.9]} 3... d5 {[%clk 0:02:50.7]} 4.
exd5 {[%clk 0:02:20.3]} 4... Qxd5 {[%clk 0:02:51.6]} 5. d4 {[%clk 0:02:19.1]}
5... Nf6 {[%clk 0:02:51.6]} 6. Na3 {[%clk 0:02:19.3]} 6... Nc6 {[%clk
0:02:49.1]} 7. Be2 {[%clk 0:02:06.8]} 7... cxd4 {[%clk 0:02:45.1]} 8. Nb5 {[%clk
0:02:06.9]} 8... Qd8 {[%clk 0:02:45.3]} 9. Nbxd4 {[%clk 0:02:06]} 9... Nxd4
{[%clk 0:02:43.3]} 10. Qxd4 {[%clk 0:01:59.2]} 10... Qxd4 {[%clk 0:02:42.5]} 11.
Nxd4 {[%clk 0:02:00.1]} 11... Bc5 {[%clk 0:02:36.4]} 12. Nb3 {[%clk 0:01:57.5]}
12... Bb6 {[%clk 0:02:34.7]} 13. Bf3 {[%clk 0:01:55.9]} 13... O-O {[%clk
0:02:30.2]} 14. O-O {[%clk 0:01:55.9]} 14... e5 {[%clk 0:02:27.1]} 15. Bg5
{[%clk 0:01:51.8]} 15... e4 {[%clk 0:01:58.4]} 16. Be2 {[%clk 0:01:51.6]} 16...
Ng4 {[%clk 0:01:30.6]} 17. Rad1 {[%clk 0:01:41.9]} 17... h6 {[%clk 0:01:22.2]}
18. Bc1 {[%clk 0:01:26.5]} 18... Ne5 {[%clk 0:00:33.2]} 19. Rd5 {[%clk
0:01:02.5]} 19... Ng6 {[%clk 0:00:14]} 20. Be3 {[%clk 0:00:53.4]} 20... Be6
{[%clk 0:00:13.5]} 21. Rd6 {[%clk 0:00:53.6]} 21... Bxe3 {[%clk 0:00:09]} 22.
fxe3 {[%clk 0:00:53.7]} 22... Bxb3 {[%clk 0:00:08.7]} 23. axb3 {[%clk
0:00:53.8]} 23... Rfd8 {[%clk 0:00:08.3]} 24. Rfd1 {[%clk 0:00:47.8]} 24... Rxd6
{[%clk 0:00:08.2]} 25. Rxd6 {[%clk 0:00:48.7]} 25... Kf8 {[%clk 0:00:04.4]} 26.
Rd7 {[%clk 0:00:48]} 26... Rb8 {[%clk 0:00:04.8]} 27. Rc7 {[%clk 0:00:45.1]}
27... Ne5 {[%clk 0:00:04]} 28. Kf2 {[%clk 0:00:42.7]} 28... Ke8 {[%clk
0:00:03.8]} 29. Kg3 {[%clk 0:00:38.2]} 29... Kd8 {[%clk 0:00:03.8]} 30. Rc5
{[%clk 0:00:38.6]} 30... f6 {[%clk 0:00:04.4]} 31. Kf4 {[%clk 0:00:34.3]} 31...
Nd7 {[%clk 0:00:02.9]} 32. Rd5 {[%clk 0:00:31.9]} 32... Kc7 {[%clk 0:00:03.3]}
33. g4 {[%clk 0:00:20.6]} 33... Re8 {[%clk 0:00:02.3]} 34. Rxd7+ {[%clk
0:00:12.9]} 34... Kxd7 {[%clk 0:00:02.2]} 35. Bb5+ {[%clk 0:00:13.8]} 35... Ke7
{[%clk 0:00:03]} 36. Bxe8 {[%clk 0:00:14.1]} 36... Kxe8 {[%clk 0:00:03.9]} 37.
Kxe4 {[%clk 0:00:14.8]} 37... Ke7 {[%clk 0:00:03.7]} 38. Kd5 {[%clk 0:00:15]}
38... Kd7 {[%clk 0:00:03.8]} 39. b4 {[%clk 0:00:13.1]} 39... a6 {[%clk 0:00:02]}
40. c4 {[%clk 0:00:12.9]} 40... g6 {[%clk 0:00:02.5]} 41. e4 {[%clk 0:00:11.6]}
41... Ke7 {[%clk 0:00:01.8]} 42. e5 {[%clk 0:00:07]} 42... f5 {[%clk 0:00:02.2]}
43. gxf5 {[%clk 0:00:05.1]} 43... gxf5 {[%clk 0:00:03.1]} 44. c5 {[%clk
0:00:03.8]} 44... h5 {[%clk 0:00:02.1]} 45. h4 {[%clk 0:00:03.6]} 45... Kd7
{[%clk 0:00:01.4]} 46. e6+ {[%clk 0:00:03.4]} 46... Ke7 {[%clk 0:00:02.1]} 47.
Ke5 {[%clk 0:00:04]} 47... f4 {[%clk 0:00:03]} 48. Kxf4 {[%clk 0:00:04.5]} 48...
Kxe6 {[%clk 0:00:03.9]} 49. Kg5 {[%clk 0:00:05.2]} 49... Kd5 {[%clk 0:00:04.5]}
50. Kxh5 {[%clk 0:00:05.5]} 50... Kc4 {[%clk 0:00:05.4]} 51. Kg5 {[%clk
0:00:06]} 51... Kxb4 {[%clk 0:00:06.3]} 52. h5 {[%clk 0:00:06.7]} 52... Kxc5
{[%clk 0:00:07.2]} 53. h6 {[%clk 0:00:07.3]} 1-0